[Event "*** Titled Tuesday Blitz"]
[Site "Chess.com"]
[Date "2020.12.29"]
[Round "10"]
[White "andrewtnb"]
[Black "chescomhuynya"]
[Result "1-0"]
[WhiteElo "2384"]
[BlackElo "2548"]
[TimeControl "180+1"]
[EndTime "11:53:39 PST"]
[Termination "andrewtnb won by resignation"]

1. d4 {[%clk 0:03:00.9]} 1... Nf6 {[%clk 0:02:58.9]} 2. c4 {[%clk 0:03:00.1]}
2... g6 {[%clk 0:02:59.2]} 3. Nc3 {[%clk 0:02:58.7]} 3... d5 {[%clk 0:02:59.8]}
4. cxd5 {[%clk 0:02:58.3]} 4... Nxd5 {[%clk 0:03:00.7]} 5. e4 {[%clk 0:02:58.5]}
5... Nxc3 {[%clk 0:03:01.5]} 6. bxc3 {[%clk 0:02:58.9]} 6... Bg7 {[%clk
0:03:02.4]} 7. Nf3 {[%clk 0:02:58.9]} 7... c5 {[%clk 0:03:03]} 8. Be2 {[%clk
0:02:59.5]} 8... Nc6 {[%clk 0:03:02.5]} 9. d5 {[%clk 0:02:56.8]} 9... Bxc3+
{[%clk 0:03:03.4]} 10. Bd2 {[%clk 0:02:56.7]} 10... Bxa1 {[%clk 0:03:04.1]} 11.
Qxa1 {[%clk 0:02:56.8]} 11... Nd4 {[%clk 0:03:05]} 12. Nxd4 {[%clk 0:02:56]}
12... cxd4 {[%clk 0:03:05.9]} 13. Qxd4 {[%clk 0:02:56.1]} 13... O-O {[%clk
0:03:06.5]} 14. Bh6 {[%clk 0:02:50.6]} 14... f6 {[%clk 0:03:06.6]} 15. Bxf8
{[%clk 0:02:34.1]} 15... Kxf8 {[%clk 0:03:07.5]} 16. O-O {[%clk 0:02:32.2]}
16... Qb6 {[%clk 0:03:07.5]} 17. Qd2 {[%clk 0:02:26.5]} 17... Kg7 {[%clk
0:03:06.7]} 18. Rc1 {[%clk 0:02:23]} 18... Bd7 {[%clk 0:03:06.8]} 19. Bc4 {[%clk
0:02:16.2]} 19... Rc8 {[%clk 0:03:06.5]} 20. Bb3 {[%clk 0:02:15.7]} 20... Rxc1+
{[%clk 0:03:03.9]} 21. Qxc1 {[%clk 0:02:16.6]} 21... Qd4 {[%clk 0:03:04.7]} 22.
Qc2 {[%clk 0:02:13.3]} 22... a5 {[%clk 0:03:02.1]} 23. h3 {[%clk 0:02:12.1]}
23... a4 {[%clk 0:02:44.7]} 24. Bc4 {[%clk 0:02:06.9]} 24... a3 {[%clk 0:02:45]}
25. Bb3 {[%clk 0:02:04.8]} 25... Qa1+ {[%clk 0:02:38.1]} 26. Kh2 {[%clk
0:02:03.7]} 26... Qb2 {[%clk 0:02:37.4]} 27. Qc7 {[%clk 0:01:57.4]} 27... Qe5+
{[%clk 0:02:36.9]} 28. Qxe5 {[%clk 0:01:56.8]} 28... fxe5 {[%clk 0:02:37.8]} 29.
Kg3 {[%clk 0:01:38.3]} 29... Kf6 {[%clk 0:02:37.9]} 30. Kf3 {[%clk 0:01:37.6]}
30... b5 {[%clk 0:02:33.9]} 31. h4 {[%clk 0:01:36.5]} 31... b4 {[%clk
0:02:34.3]} 32. g4 {[%clk 0:01:33.6]} 32... e6 {[%clk 0:02:34.6]} 33. g5+ {[%clk
0:01:23.1]} 33... Ke7 {[%clk 0:02:34.8]} 34. Ke3 {[%clk 0:01:22.4]} 34... exd5
{[%clk 0:02:35.1]} 35. exd5 {[%clk 0:01:21.2]} 35... Kd6 {[%clk 0:02:35.6]} 36.
Ke4 {[%clk 0:01:20.8]} 36... Bf5+ {[%clk 0:02:35]} 37. Ke3 {[%clk 0:01:21]}
37... Bc8 {[%clk 0:02:33.5]} 38. Kd3 {[%clk 0:01:18.4]} 38... Ba6+ {[%clk
0:02:33.7]} 39. Ke4 {[%clk 0:01:15.9]} 39... Bf1 {[%clk 0:02:28.4]} 40. f3
{[%clk 0:01:06.9]} 40... Ba6 {[%clk 0:02:27.6]} 41. Ke3 {[%clk 0:01:06.2]} 41...
Bc8 {[%clk 0:02:17.1]} 42. Ke4 {[%clk 0:01:06.5]} 42... Bf5+ {[%clk 0:02:17.3]}
43. Ke3 {[%clk 0:01:06.8]} 43... Kc5 {[%clk 0:02:17.8]} 44. f4 {[%clk
0:00:52.5]} 44... exf4+ {[%clk 0:02:15.1]} 45. Kxf4 {[%clk 0:00:52]} 45... Bh3
{[%clk 0:02:12.6]} 46. Ke5 {[%clk 0:00:51.2]} 46... Bg4 {[%clk 0:02:06.4]} 47.
d6 {[%clk 0:00:50.9]} 47... Kc6 {[%clk 0:02:06.2]} 48. Ba4+ {[%clk 0:00:50]}
48... Kc5 {[%clk 0:02:01.7]} 49. Bb3 {[%clk 0:00:49.3]} 49... Bd7 {[%clk
0:02:01.3]} 50. Bg8 {[%clk 0:00:38.3]} 50... Ba4 {[%clk 0:01:59.1]} 51. Bf7
{[%clk 0:00:35.2]} 51... b3 {[%clk 0:01:55.3]} 52. Bxb3 {[%clk 0:00:34]} 52...
Bxb3 {[%clk 0:01:55.7]} 53. d7 {[%clk 0:00:34.2]} 53... Bxa2 {[%clk 0:01:53.3]}
54. d8=Q {[%clk 0:00:35.1]} 54... Bb3 {[%clk 0:01:53.7]} 55. Qd6+ {[%clk
0:00:34.7]} 55... Kc4 {[%clk 0:01:53.8]} 56. Qxa3 {[%clk 0:00:35.1]} 1-0

[Event "*** Titled Tuesday Blitz"]
[Site "Chess.com"]
[Date "2020.12.29"]
[Round "10"]
[White "amintabatabaei"]
[Black "Beca95"]
[Result "0-1"]
[WhiteElo "2901"]
[BlackElo "2844"]
[TimeControl "180+1"]
[EndTime "11:53:40 PST"]
[Termination "Beca95 won by resignation"]

1. d4 {[%clk 0:03:00.9]} 1... Nf6 {[%clk 0:02:59.8]} 2. Nf3 {[%clk 0:03:01.2]}
2... e6 {[%clk 0:02:59.8]} 3. Bf4 {[%clk 0:03:01.7]} 3... c5 {[%clk 0:02:59.2]}
4. e3 {[%clk 0:03:02]} 4... cxd4 {[%clk 0:02:59.7]} 5. exd4 {[%clk 0:03:02.2]}
5... b6 {[%clk 0:03:00.3]} 6. c3 {[%clk 0:03:01.9]} 6... Be7 {[%clk 0:02:59.6]}
7. h3 {[%clk 0:03:02.2]} 7... Ba6 {[%clk 0:02:59.4]} 8. Bxa6 {[%clk 0:02:55.6]}
8... Nxa6 {[%clk 0:03:00.3]} 9. O-O {[%clk 0:02:56]} 9... O-O {[%clk 0:02:59.7]}
10. Re1 {[%clk 0:02:56.5]} 10... Nc7 {[%clk 0:02:59.9]} 11. Nbd2 {[%clk
0:02:56.2]} 11... b5 {[%clk 0:02:59.3]} 12. Qe2 {[%clk 0:02:46.4]} 12... Ncd5
{[%clk 0:02:57.6]} 13. Bh2 {[%clk 0:02:45.7]} 13... Qb6 {[%clk 0:02:55.6]} 14.
Ne4 {[%clk 0:02:39.2]} 14... Nxe4 {[%clk 0:02:54.7]} 15. Qxe4 {[%clk 0:02:40.1]}
15... d6 {[%clk 0:02:50.5]} 16. Qd3 {[%clk 0:02:30.6]} 16... a5 {[%clk 0:02:42]}
17. Nd2 {[%clk 0:02:24.9]} 17... Rfc8 {[%clk 0:02:35.9]} 18. Ne4 {[%clk
0:02:14.1]} 18... h6 {[%clk 0:02:35.4]} 19. Re2 {[%clk 0:02:04.6]} 19... Nf6
{[%clk 0:02:29.4]} 20. Nxf6+ {[%clk 0:01:53.6]} 20... Bxf6 {[%clk 0:02:30.3]}
21. Rd1 {[%clk 0:01:42.2]} 21... d5 {[%clk 0:02:28.7]} 22. Be5 {[%clk
0:01:34.8]} 22... Bxe5 {[%clk 0:02:27.7]} 23. Rxe5 {[%clk 0:01:35.7]} 23... b4
{[%clk 0:02:27.3]} 24. Re3 {[%clk 0:00:59]} 24... bxc3 {[%clk 0:02:26.8]} 25.
bxc3 {[%clk 0:00:59.9]} 25... Qb2 {[%clk 0:02:01.8]} 26. Rd2 {[%clk 0:00:52.7]}
26... Qa1+ {[%clk 0:01:51.8]} 27. Kh2 {[%clk 0:00:52.8]} 27... Rab8 {[%clk
0:01:50.8]} 28. Qc2 {[%clk 0:00:26.2]} 28... Rb1 {[%clk 0:01:46.3]} 29. Qa4
{[%clk 0:00:21.7]} 29... Rh1+ {[%clk 0:01:36.2]} 30. Kg3 {[%clk 0:00:22.1]}
30... Qg1 {[%clk 0:01:34.5]} 31. Qd7 {[%clk 0:00:21.9]} 31... Rf8 {[%clk
0:01:32.9]} 32. Ree2 {[%clk 0:00:09.8]} 32... g5 {[%clk 0:01:31.7]} 33. Qe7
{[%clk 0:00:04]} 0-1

[Event "*** Titled Tuesday Blitz"]
[Site "Chess.com"]
[Date "2020.12.29"]
[Round "10"]
[White "GM_Crest"]
[Black "ZatonskihAnna"]
[Result "1-0"]
[WhiteElo "2699"]
[BlackElo "2508"]
[TimeControl "180+1"]
[EndTime "11:53:49 PST"]
[Termination "GM_Crest won on time"]

1. d4 {[%clk 0:03:00.9]} 1... d5 {[%clk 0:02:59.7]} 2. c4 {[%clk 0:03:00.9]}
2... e6 {[%clk 0:03:00]} 3. Nc3 {[%clk 0:03:01]} 3... Nf6 {[%clk 0:02:59.2]} 4.
cxd5 {[%clk 0:03:00.5]} 4... exd5 {[%clk 0:03:00.1]} 5. Bg5 {[%clk 0:03:00.7]}
5... Be7 {[%clk 0:02:58.5]} 6. Qc2 {[%clk 0:03:00.7]} 6... c6 {[%clk 0:02:56.4]}
7. e3 {[%clk 0:03:00.6]} 7... Nbd7 {[%clk 0:02:56.6]} 8. Bd3 {[%clk 0:03:00.7]}
8... Nf8 {[%clk 0:02:56.8]} 9. Nf3 {[%clk 0:03:00.2]} 9... Bg4 {[%clk
0:02:41.9]} 10. Ne5 {[%clk 0:02:59.6]} 10... Bh5 {[%clk 0:02:42]} 11. f4 {[%clk
0:02:57.4]} 11... N6d7 {[%clk 0:02:30]} 12. Bxe7 {[%clk 0:02:50.4]} 12... Qxe7
{[%clk 0:02:29.2]} 13. O-O {[%clk 0:02:30.2]} 13... f6 {[%clk 0:00:41.1]} 14.
Nxd7 {[%clk 0:02:29.6]} 14... Nxd7 {[%clk 0:00:32.6]} 15. Rae1 {[%clk
0:02:28.1]} 15... Qd6 {[%clk 0:00:23.1]} 16. Bxh7 {[%clk 0:02:26.2]} 16... O-O-O
{[%clk 0:00:19.4]} 17. Bf5 {[%clk 0:02:19.3]} 17... Kb8 {[%clk 0:00:19.2]} 18.
b4 {[%clk 0:02:18.5]} 18... Nb6 {[%clk 0:00:15.1]} 19. b5 {[%clk 0:02:16.2]}
19... Be8 {[%clk 0:00:13.6]} 20. bxc6 {[%clk 0:02:15.1]} 20... Bxc6 {[%clk
0:00:14.5]} 21. Qd3 {[%clk 0:02:02.5]} 21... g5 {[%clk 0:00:13.9]} 22. Re2
{[%clk 0:01:56.4]} 22... Rdg8 {[%clk 0:00:12.8]} 23. g3 {[%clk 0:01:52.3]} 23...
Rh5 {[%clk 0:00:09.7]} 24. Bg4 {[%clk 0:01:44.3]} 24... Rhh8 {[%clk 0:00:08.3]}
25. Bf3 {[%clk 0:01:44.8]} 25... gxf4 {[%clk 0:00:04.4]} 26. exf4 {[%clk
0:01:44.8]} 26... Nc4 {[%clk 0:00:04.2]} 27. Bg2 {[%clk 0:01:40.7]} 27... Qd7
{[%clk 0:00:03.6]} 28. Rfe1 {[%clk 0:01:37.3]} 28... Rg7 {[%clk 0:00:03.3]} 29.
Re6 {[%clk 0:01:33.2]} 29... Rgh7 {[%clk 0:00:01.4]} 30. h4 {[%clk 0:01:27.5]}
30... Rg7 {[%clk 0:00:01.7]} 31. Rxf6 {[%clk 0:01:21.3]} 31... Rhg8 {[%clk
0:00:01.3]} 32. Ne2 {[%clk 0:01:21.5]} 1-0

[Event "*** Titled Tuesday Blitz"]
[Site "Chess.com"]
[Date "2020.12.29"]
[Round "10"]
[White "MaxLeto"]
[Black "MVM2008"]
[Result "1-0"]
[WhiteElo "2396"]
[BlackElo "2218"]
[TimeControl "180+1"]
[EndTime "11:53:52 PST"]
[Termination "MaxLeto won on time"]

1. g4 {[%clk 0:03:00.9]} 1... e5 {[%clk 0:02:56.4]} 2. Bg2 {[%clk 0:03:01]} 2...
c6 {[%clk 0:02:53.6]} 3. d4 {[%clk 0:02:58.9]} 3... exd4 {[%clk 0:02:53]} 4.
Qxd4 {[%clk 0:02:55.1]} 4... d5 {[%clk 0:02:47.4]} 5. Nc3 {[%clk 0:02:52.4]}
5... Nd7 {[%clk 0:02:41.4]} 6. Bf4 {[%clk 0:02:37.6]} 6... Ngf6 {[%clk
0:02:31.6]} 7. g5 {[%clk 0:02:34.9]} 7... Bc5 {[%clk 0:02:28]} 8. Qd3 {[%clk
0:02:30.5]} 8... Ng4 {[%clk 0:02:20.5]} 9. e3 {[%clk 0:02:26.3]} 9... Nde5
{[%clk 0:02:00.4]} 10. Qe2 {[%clk 0:02:20.7]} 10... Nc4 {[%clk 0:01:42.8]} 11.
O-O-O {[%clk 0:02:17]} 11... Qa5 {[%clk 0:01:02.2]} 12. Bxd5 {[%clk 0:01:25.8]}
12... cxd5 {[%clk 0:00:25.3]} 13. Rxd5 {[%clk 0:01:25.5]} 13... Qb4 {[%clk
0:00:14.3]} 14. Na4 {[%clk 0:00:53.5]} 14... b6 {[%clk 0:00:03.5]} 15. b3 {[%clk
0:00:53.4]} 15... Qa3+ {[%clk 0:00:03.3]} 16. Kb1 {[%clk 0:00:52.6]} 16... b5
{[%clk 0:00:01.2]} 17. Rxc5 {[%clk 0:00:51]} 17... bxa4 {[%clk 0:00:01.4]} 18.
Qxc4 {[%clk 0:00:50.4]} 18... axb3 {[%clk 0:00:01.5]} 19. Rxc8+ {[%clk
0:00:50.2]} 19... Ke7 {[%clk 0:00:01.8]} 20. Rc7+ {[%clk 0:00:49.8]} 1-0

[Event "*** Titled Tuesday Blitz"]
[Site "Chess.com"]
[Date "2020.12.29"]
[Round "10"]
[White "TST2014"]
[Black "BelaKis"]
[Result "1-0"]
[WhiteElo "2532"]
[BlackElo "2120"]
[TimeControl "180+1"]
[EndTime "11:53:53 PST"]
[Termination "TST2014 won on time"]

1. d4 {[%clk 0:02:38.4]} 1... Nf6 {[%clk 0:01:38.7]} 2. c4 {[%clk 0:02:36]} 2...
g6 {[%clk 0:01:38.9]} 3. Nc3 {[%clk 0:02:34.4]} 3... Bg7 {[%clk 0:01:39.4]} 4.
e4 {[%clk 0:02:34.4]} 4... d6 {[%clk 0:01:40.1]} 5. Nf3 {[%clk 0:02:34.9]} 5...
O-O {[%clk 0:01:40.8]} 6. Be2 {[%clk 0:02:35.4]} 6... a6 {[%clk 0:01:41.3]} 7.
O-O {[%clk 0:02:36]} 7... Nbd7 {[%clk 0:01:42]} 8. Be3 {[%clk 0:02:35.4]} 8...
c5 {[%clk 0:01:42.2]} 9. d5 {[%clk 0:02:31.4]} 9... b5 {[%clk 0:01:41.7]} 10.
cxb5 {[%clk 0:02:30.8]} 10... Qa5 {[%clk 0:01:42.2]} 11. a4 {[%clk 0:02:29.8]}
11... Ne8 {[%clk 0:01:26.6]} 12. Bg5 {[%clk 0:02:22.8]} 12... f6 {[%clk
0:01:25.3]} 13. Bd2 {[%clk 0:02:22.4]} 13... axb5 {[%clk 0:01:15.8]} 14. Nxb5
{[%clk 0:02:17.4]} 14... Qb6 {[%clk 0:01:16.1]} 15. Bc3 {[%clk 0:02:16]} 15...
Nc7 {[%clk 0:01:15.6]} 16. a5 {[%clk 0:02:15.9]} 16... Qb8 {[%clk 0:01:12.6]}
17. Qa4 {[%clk 0:02:12.6]} 17... Ba6 {[%clk 0:01:09.5]} 18. Nxc7 {[%clk
0:01:59.5]} 18... Qxc7 {[%clk 0:01:09.5]} 19. Bxa6 {[%clk 0:01:50.7]} 19... Rxa6
{[%clk 0:01:10.4]} 20. Nd2 {[%clk 0:01:47.8]} 20... Rfa8 {[%clk 0:00:56]} 21.
Nc4 {[%clk 0:01:47.3]} 21... Ne5 {[%clk 0:00:47]} 22. Nb6 {[%clk 0:01:43.2]}
22... R8a7 {[%clk 0:00:45.3]} 23. f4 {[%clk 0:01:42]} 23... Nd3 {[%clk
0:00:43.4]} 24. Qe8+ {[%clk 0:01:41.5]} 24... Bf8 {[%clk 0:00:42.5]} 25. e5
{[%clk 0:01:32.2]} 25... dxe5 {[%clk 0:00:41.1]} 26. fxe5 {[%clk 0:01:31.9]}
26... Nxe5 {[%clk 0:00:41.1]} 27. Rae1 {[%clk 0:01:29.6]} 27... Rxb6 {[%clk
0:00:40.1]} 28. axb6 {[%clk 0:01:28.8]} 28... Qxb6 {[%clk 0:00:40.6]} 29. Bxe5
{[%clk 0:01:28.9]} 29... c4+ {[%clk 0:00:35.3]} 30. Kh1 {[%clk 0:01:28.1]} 30...
Qb7 {[%clk 0:00:21.1]} 31. Bc3 {[%clk 0:01:19.4]} 31... Qxd5 {[%clk 0:00:17.6]}
32. Rd1 {[%clk 0:01:18.7]} 32... Qa8 {[%clk 0:00:16.3]} 33. Rd8 {[%clk
0:01:17.8]} 1-0

[Event "*** Titled Tuesday Blitz"]
[Site "Chess.com"]
[Date "2020.12.29"]
[Round "10"]
[White "AlexeiShirov"]
[Black "OparinGrigoriy"]
[Result "0-1"]
[WhiteElo "2841"]
[BlackElo "2975"]
[TimeControl "180+1"]
[EndTime "11:53:57 PST"]
[Termination "OparinGrigoriy won by resignation"]

1. e4 {[%clk 0:03:00.9]} 1... e5 {[%clk 0:03:00.6]} 2. Nf3 {[%clk 0:03:00.8]}
2... Nc6 {[%clk 0:03:01.2]} 3. Bb5 {[%clk 0:03:00.8]} 3... a6 {[%clk 0:03:01.6]}
4. Ba4 {[%clk 0:03:00.5]} 4... Nf6 {[%clk 0:03:02.2]} 5. O-O {[%clk 0:03:00.2]}
5... Nxe4 {[%clk 0:03:02.7]} 6. d4 {[%clk 0:02:58.8]} 6... b5 {[%clk 0:03:02.8]}
7. Bb3 {[%clk 0:02:58.7]} 7... d5 {[%clk 0:03:03.5]} 8. dxe5 {[%clk 0:02:57]}
8... Be6 {[%clk 0:03:03.9]} 9. Nbd2 {[%clk 0:02:49.9]} 9... Be7 {[%clk
0:03:04.1]} 10. c3 {[%clk 0:02:49.3]} 10... O-O {[%clk 0:03:03.3]} 11. Bc2
{[%clk 0:02:35.1]} 11... f5 {[%clk 0:03:03.5]} 12. exf6 {[%clk 0:02:30.6]} 12...
Nxf6 {[%clk 0:03:03.3]} 13. Nb3 {[%clk 0:02:30.4]} 13... Bg4 {[%clk 0:03:02.8]}
14. h3 {[%clk 0:02:28.8]} 14... Bh5 {[%clk 0:03:03.1]} 15. Qd3 {[%clk
0:02:04.3]} 15... Ne4 {[%clk 0:02:58.8]} 16. Nbd4 {[%clk 0:01:52.4]} 16... Nxd4
{[%clk 0:02:10.1]} 17. Nxd4 {[%clk 0:01:52.2]} 17... Qd7 {[%clk 0:02:10.2]} 18.
f3 {[%clk 0:01:45.8]} 18... Nf6 {[%clk 0:02:10.3]} 19. Bg5 {[%clk 0:01:43.7]}
19... c5 {[%clk 0:01:54]} 20. Nf5 {[%clk 0:01:42.3]} 20... Bg6 {[%clk
0:01:46.9]} 21. Nxe7+ {[%clk 0:01:41.9]} 21... Qxe7 {[%clk 0:01:46.2]} 22. Bxf6
{[%clk 0:01:41.5]} 22... Qf7 {[%clk 0:01:46.1]} 23. Qd2 {[%clk 0:01:35.7]} 23...
Bxc2 {[%clk 0:01:46.7]} 24. Be5 {[%clk 0:01:35.2]} 24... Bg6 {[%clk 0:01:43.8]}
25. Rae1 {[%clk 0:01:34.4]} 25... Rfe8 {[%clk 0:01:44.2]} 26. Rf2 {[%clk
0:01:33.7]} 26... Rad8 {[%clk 0:01:44.4]} 27. Rfe2 {[%clk 0:01:31.2]} 27... h6
{[%clk 0:01:40.9]} 28. b4 {[%clk 0:01:29.8]} 28... cxb4 {[%clk 0:01:35.2]} 29.
cxb4 {[%clk 0:01:28.4]} 29... d4 {[%clk 0:01:35.8]} 30. Bg3 {[%clk 0:01:05.7]}
30... Rxe2 {[%clk 0:01:34.3]} 31. Rxe2 {[%clk 0:01:05.6]} 31... d3 {[%clk
0:01:34.4]} 32. Re5 {[%clk 0:01:04.5]} 32... Rc8 {[%clk 0:01:32.1]} 33. Rc5
{[%clk 0:01:03.8]} 33... Re8 {[%clk 0:01:32.2]} 34. Re5 {[%clk 0:01:03.2]} 34...
Rd8 {[%clk 0:01:28.6]} 35. Kh2 {[%clk 0:01:00.7]} 35... Qf6 {[%clk 0:01:23.7]}
36. Rc5 {[%clk 0:00:59.5]} 36... Re8 {[%clk 0:01:23.4]} 37. Qc1 {[%clk
0:00:42.5]} 37... Re2 {[%clk 0:01:19.7]} 38. Bf4 {[%clk 0:00:37.9]} 38... d2
{[%clk 0:01:14.5]} 39. Bxd2 {[%clk 0:00:28.9]} 39... Qxf3 {[%clk 0:01:15]} 0-1

[Event "*** Titled Tuesday Blitz"]
[Site "Chess.com"]
[Date "2020.12.29"]
[Round "10"]
[White "rubhani"]
[Black "francyIM"]
[Result "1-0"]
[WhiteElo "2504"]
[BlackElo "2667"]
[TimeControl "180+1"]
[EndTime "11:53:57 PST"]
[Termination "rubhani won by resignation"]

1. g3 {[%clk 0:03:00.9]} 1... e6 {[%clk 0:02:54.1]} 2. Bg2 {[%clk 0:03:01.1]}
2... f5 {[%clk 0:02:54]} 3. b3 {[%clk 0:03:02]} 3... Nf6 {[%clk 0:02:54.9]} 4.
Bb2 {[%clk 0:03:02.9]} 4... Be7 {[%clk 0:02:55.4]} 5. Nf3 {[%clk 0:03:02.8]}
5... O-O {[%clk 0:02:56.1]} 6. O-O {[%clk 0:03:03.7]} 6... a5 {[%clk 0:02:56.1]}
7. a4 {[%clk 0:03:03.5]} 7... b6 {[%clk 0:02:56.1]} 8. Ne5 {[%clk 0:03:02.5]}
8... Ra7 {[%clk 0:02:56.2]} 9. Nc3 {[%clk 0:02:58.4]} 9... Bb7 {[%clk
0:02:55.6]} 10. Bxb7 {[%clk 0:02:51.9]} 10... Rxb7 {[%clk 0:02:56.5]} 11. d3
{[%clk 0:02:45.4]} 11... d6 {[%clk 0:02:55.4]} 12. Nf3 {[%clk 0:02:44.2]} 12...
e5 {[%clk 0:02:54.8]} 13. e4 {[%clk 0:02:42.8]} 13... Qc8 {[%clk 0:02:51.5]} 14.
Re1 {[%clk 0:02:26.6]} 14... f4 {[%clk 0:02:49.2]} 15. d4 {[%clk 0:02:26.6]}
15... Qh3 {[%clk 0:02:34.2]} 16. Ng5 {[%clk 0:02:23.1]} 16... Qh6 {[%clk
0:02:28.3]} 17. Ne6 {[%clk 0:02:23]} 17... Re8 {[%clk 0:02:26.7]} 18. dxe5
{[%clk 0:02:17.4]} 18... d5 {[%clk 0:02:24]} 19. Nxd5 {[%clk 0:02:13.2]} 19...
Nfd7 {[%clk 0:02:17.8]} 20. Nexf4 {[%clk 0:02:09.6]} 20... c6 {[%clk 0:02:16]}
21. Nxe7+ {[%clk 0:02:07.8]} 21... Rxe7 {[%clk 0:02:16.9]} 22. Qd6 {[%clk
0:02:07.6]} 22... Qxd6 {[%clk 0:02:06.8]} 23. exd6 {[%clk 0:02:08.5]} 23... Re8
{[%clk 0:02:06.5]} 24. e5 {[%clk 0:02:08.4]} 24... Nc5 {[%clk 0:01:59.8]} 25. e6
{[%clk 0:02:02.3]} 25... g5 {[%clk 0:01:59.3]} 26. d7 {[%clk 0:01:57.3]} 26...
Nbxd7 {[%clk 0:01:58.5]} 27. exd7 {[%clk 0:01:56.9]} 27... Rxe1+ {[%clk
0:01:59.4]} 28. Rxe1 {[%clk 0:01:56.7]} 28... Rxd7 {[%clk 0:02:00.3]} 29. Ne6
{[%clk 0:01:50.6]} 29... Re7 {[%clk 0:01:59.6]} 30. Bd4 {[%clk 0:01:38]} 30...
Nxe6 {[%clk 0:01:57.5]} 31. Bxb6 {[%clk 0:01:37.8]} 31... Kf7 {[%clk 0:01:58.4]}
32. Bxa5 {[%clk 0:01:37.5]} 32... Rd7 {[%clk 0:01:59]} 33. Bc3 {[%clk
0:01:36.9]} 33... g4 {[%clk 0:01:58.2]} 34. Kg2 {[%clk 0:01:30.4]} 34... Ng5
{[%clk 0:01:57.3]} 35. a5 {[%clk 0:01:22.6]} 35... Kg6 {[%clk 0:01:54.2]} 36. a6
{[%clk 0:01:21.8]} 36... Ra7 {[%clk 0:01:48.7]} 37. Ra1 {[%clk 0:01:21.7]} 37...
c5 {[%clk 0:01:46.8]} 38. Be5 {[%clk 0:01:17.3]} 38... Nf3 {[%clk 0:01:36.1]}
39. Bb8 {[%clk 0:01:16.6]} 39... Ra8 {[%clk 0:01:37]} 40. a7 {[%clk 0:01:16.5]}
40... Nd4 {[%clk 0:01:37.9]} 41. Ra6+ {[%clk 0:01:13]} 41... Kf5 {[%clk
0:01:37.2]} 42. Ra5 {[%clk 0:01:11.9]} 42... Ne6 {[%clk 0:01:36.7]} 43. b4
{[%clk 0:01:10.5]} 43... Ke4 {[%clk 0:01:36.5]} 44. bxc5 {[%clk 0:01:03.7]}
44... Kd5 {[%clk 0:01:36.2]} 45. c6+ {[%clk 0:01:04]} 45... Kxc6 {[%clk
0:01:35.7]} 46. Rh5 {[%clk 0:01:03.4]} 46... Nf8 {[%clk 0:01:32.6]} 47. Rh6+
{[%clk 0:00:55.1]} 47... Kd7 {[%clk 0:01:26]} 48. c4 {[%clk 0:00:52.3]} 48...
Ke8 {[%clk 0:01:23.2]} 49. c5 {[%clk 0:00:51]} 49... Kd7 {[%clk 0:01:22.9]} 50.
c6+ {[%clk 0:00:50.4]} 50... Ke7 {[%clk 0:01:22.3]} 51. Bd6+ {[%clk 0:00:46.9]}
1-0

[Event "*** Titled Tuesday Blitz"]
[Site "Chess.com"]
[Date "2020.12.29"]
[Round "10"]
[White "Moon_stone123"]
[Black "Efremov_Vlad"]
[Result "1-0"]
[WhiteElo "2433"]
[BlackElo "2282"]
[TimeControl "180+1"]
[EndTime "11:54:02 PST"]
[Termination "Moon_stone123 won by checkmate"]

1. e4 {[%clk 0:03:00.9]} 1... c5 {[%clk 0:02:59.6]} 2. Nf3 {[%clk 0:03:00.4]}
2... Nf6 {[%clk 0:02:59.2]} 3. e5 {[%clk 0:02:59.2]} 3... Nd5 {[%clk 0:02:59.2]}
4. Nc3 {[%clk 0:02:59.1]} 4... Nxc3 {[%clk 0:02:59.3]} 5. dxc3 {[%clk 0:03:00]}
5... Nc6 {[%clk 0:02:59.3]} 6. Bc4 {[%clk 0:02:59]} 6... e6 {[%clk 0:02:57.8]}
7. O-O {[%clk 0:02:57.7]} 7... Qc7 {[%clk 0:02:48.1]} 8. Re1 {[%clk 0:02:57.3]}
8... b6 {[%clk 0:02:46.5]} 9. a4 {[%clk 0:02:53.4]} 9... Bb7 {[%clk 0:02:45.8]}
10. Qe2 {[%clk 0:02:52.2]} 10... h6 {[%clk 0:02:45.6]} 11. Bd2 {[%clk
0:02:49.6]} 11... Be7 {[%clk 0:02:33.8]} 12. Bd3 {[%clk 0:02:49.5]} 12... d5
{[%clk 0:02:14.5]} 13. exd6 {[%clk 0:02:50.4]} 13... Bxd6 {[%clk 0:02:09.4]} 14.
Rad1 {[%clk 0:02:48.5]} 14... Ne7 {[%clk 0:02:02.1]} 15. h3 {[%clk 0:02:34.1]}
15... O-O {[%clk 0:02:01.3]} 16. Bc1 {[%clk 0:02:13.8]} 16... Rac8 {[%clk
0:01:59.6]} 17. Nd2 {[%clk 0:02:13.9]} 17... Rfd8 {[%clk 0:01:41.6]} 18. Nc4
{[%clk 0:02:08.5]} 18... Qc6 {[%clk 0:01:32.5]} 19. f3 {[%clk 0:02:04]} 19...
Bg3 {[%clk 0:01:21.2]} 20. Ne5 {[%clk 0:02:03.9]} 20... Bxe5 {[%clk 0:00:54.5]}
21. Qxe5 {[%clk 0:02:04.8]} 21... Rd5 {[%clk 0:00:49.6]} 22. Qe2 {[%clk
0:02:01.6]} 22... Qd7 {[%clk 0:00:47.8]} 23. Bb5 {[%clk 0:01:57.5]} 23... Qd8
{[%clk 0:00:44.3]} 24. Bc4 {[%clk 0:01:55.5]} 24... Rxd1 {[%clk 0:00:43.6]} 25.
Rxd1 {[%clk 0:01:56.4]} 25... Nd5 {[%clk 0:00:40.6]} 26. Bd3 {[%clk 0:01:52.6]}
26... Qc7 {[%clk 0:00:38]} 27. Qe4 {[%clk 0:01:50.6]} 27... Nf6 {[%clk
0:00:37.8]} 28. Qh4 {[%clk 0:01:47.2]} 28... c4 {[%clk 0:00:37]} 29. Bf1 {[%clk
0:01:26.3]} 29... Qc5+ {[%clk 0:00:36.6]} 30. Kh1 {[%clk 0:01:24.3]} 30... Nd5
{[%clk 0:00:33.4]} 31. Rd4 {[%clk 0:01:20.5]} 31... Ba6 {[%clk 0:00:31.3]} 32.
Bxh6 {[%clk 0:01:13.7]} 32... gxh6 {[%clk 0:00:16.7]} 33. Qxh6 {[%clk
0:01:14.6]} 33... f5 {[%clk 0:00:16.8]} 34. Qxe6+ {[%clk 0:01:14.3]} 34... Kf8
{[%clk 0:00:15.5]} 35. Rxd5 {[%clk 0:01:12.6]} 35... Qc6 {[%clk 0:00:12.2]} 36.
Rxf5+ {[%clk 0:01:11.3]} 36... Kg7 {[%clk 0:00:11.5]} 37. Qf7+ {[%clk
0:01:07.8]} 37... Kh6 {[%clk 0:00:11.2]} 38. Rh5# {[%clk 0:01:08.1]} 1-0